fUSD/lending_fUSD_20240803
["ID","MTS","AMOUNT","RATE_DAILY","PERIOD"]
[333946505,1722646236122,-943.41,0.00014014,2]
[333946506,1722646236132,-15643.8807673,0.00014051,2]
[333946507,1722646236142,-168.58,0.00014058,2]
[333946508,1722646236154,-1925.0,0.00014061,2]
[333946509,1722646236165,-1581.0,0.00014061,2]
[333946510,1722646236174,-1255.0,0.00014061,2]
[333946511,1722646236184,-1249.0,0.00014061,2]
[333946512,1722646236194,-445.0,0.00014061,2]
[333946513,1722646236203,-550.0,0.00014061,2]
[333946514,1722646236213,-1996.0,0.00014061,2]
[333946515,1722646236224,-1370.0,0.00014061,2]
[333946516,1722646236235,-150.0,0.00014061,2]
[333946517,1722646236249,-3285.0,0.00014061,2]
[333946518,1722646236259,-1670.0,0.00014061,2]
[333946519,1722646236268,-5126.0,0.00014061,2]
[333946520,1722646236278,-5834.0,0.00014061,2]
[333946521,1722646236289,-1203.0,0.00014061,2]
[333946522,1722646236299,-150.0,0.00014061,2]
[333946523,1722646236308,-150.0,0.00014061,2]
[333946524,1722646236321,-8713.187,0.00014061,2]
[333946525,1722646236332,-150.02,0.00014062,2]
[333946526,1722646236342,-5214.62692242,0.00014217,2]
[333946527,1722646236351,-6152.49730379,0.00014227,2]
[333946528,1722646236361,-1000.0,0.000146,2]
[333946529,1722646236371,-168.58,0.00014702,2]
[333946530,1722646236380,-199.93,0.00014738,2]
[333946531,1722646236389,-150.0,0.0001477,2]
[333946532,1722646236399,-306.50432141,0.00014776,2]
[333946533,1722646236409,-420.0,0.00014834,2]
[333946534,1722646236419,-5214.62692242,0.00014889,2]
[333946535,1722646236428,-186.23976661,0.00014896,2]
[333946536,1722646236439,-6152.49730379,0.00014898,2]
[333946537,1722646236448,-1200.0,0.000149,2]
[333946538,1722646236458,-3000.0,0.0001491,2]
[333946539,1722646236467,-1724.0,0.00015,2]
[333946540,1722646236476,-5660.0,0.00015,10]
[333946541,1722646236486,-150.0,0.00015,15]
[333946542,1722646236496,-800.0,0.00015056,2]
[333946543,1722646236590,-1000.0,0.00015056,2]
[333946544,1722646236599,-5214.62692242,0.00015064,2]
[333946545,1722646236608,-162.03527452,0.00015074,2]
[333946546,1722646236617,-152.0,0.00015076,3]
[333946547,1722646236627,-1039.0,0.00015127,2]
[333946548,1722646236636,-1000.0,0.00015243,2]
[333946549,1722646236645,-200.01,0.00015314,2]
[333946550,1722646236655,-623.71755966,0.00015369,2]
[333946551,1722646236664,-152.0,0.00015406,4]
[333946552,1722646236673,-5214.62692242,0.0001556,2]
[333946553,1722646236682,-6152.49730379,0.0001557,2]
[333946554,1722646236691,-500.0,0.000156,5]
[333946555,1722646236700,-500.0,0.00015604,2]
[333946556,1722646236710,-500.0,0.00015604,2]
[333946557,1722646236719,-500.0,0.00015604,2]
[333946558,1722646236728,-1100.0,0.000157,5]
[333946559,1722646236737,-152.0,0.00015737,5]
[333946560,1722646236747,-1700.0,0.000158,5]
[333946561,1722646236756,-5214.62692242,0.00015868,2]
[333946562,1722646236766,-800.0,0.00015878,2]
[333946563,1722646236776,-1000.0,0.00015878,2]
[333946564,1722646236785,-2300.0,0.000159,5]
[333946565,1722646236795,-650.0,0.00016,2]
[333946566,1722646236804,-2222.04201,0.00016,2]
[333946567,1722646236813,-152.0,0.00016067,6]
[333946568,1722646236823,-150.02,0.00016071,2]
[333946569,1722646236832,-15643.8807673,0.0001609,2]
[333946570,1722646236841,-31250.14885463,0.000161,2]
[333946571,1722646236850,-3083.31,0.00016116,2]
[333946572,1722646236860,-150.0,0.00016164,2]
[333946573,1722646236869,-150.0,0.00016164,2]
[333946574,1722646236878,-5214.62692242,0.00016231,2]
[333946575,1722646236887,-6152.49730379,0.00016241,2]
[333946576,1722646236897,-15643.8807673,0.00016263,2]
[333946577,1722646236907,-30195.0,0.00016273,2]
[333946578,1722646236917,-943.41,0.00016278,2]
[333946579,1722646236927,-5214.62692242,0.00016328,2]
[333946580,1722646236937,-215.93898968,0.00016338,2]
[333946581,1722646236947,-227.58588186,0.00016338,2]
[333946582,1722646236956,-183.78861233,0.00016338,2]
[333946583,1722646236966,-4246.22146418,0.00016338,2]
[333946584,1722646236975,-163.63825875,0.00016338,2]
[333946585,1722646236985,-3105.8031,0.00016338,2]
[333946586,1722646236994,-1000.0,0.00016338,2]
[333946587,1722646237003,-718.12912468,0.00016358,2]
[333946588,1722646237012,-152.0,0.00016397,7]
[333946589,1722646237022,-5214.62692242,0.00016418,2]
[333946590,1722646237031,-151.080308,0.00016418,4]
[333946591,1722646237040,-151.080308,0.00016418,4]
[333946592,1722646237053,-151.080308,0.00016418,4]
[333946593,1722646237063,-151.080308,0.00016418,3]
[333946594,1722646237074,-151.080308,0.00016418,3]
[333946595,1722646237083,-151.080308,0.00016418,3]
[333946596,1722646237093,-151.080308,0.00016418,2]
[333946597,1722646237102,-151.080308,0.00016418,2]
[333946598,1722646237111,-151.080308,0.00016418,2]
[333946599,1722646237120,-57360.8961466,0.00016428,2]
[333946600,1722646237130,-151.080308,0.00016428,2]
[333946601,1722646237140,-151.080308,0.00016428,2]
[333946602,1722646237149,-151.080308,0.00016428,2]
[333946603,1722646237159,-151.080308,0.00016428,3]
[333946604,1722646237168,-151.080308,0.00016428,3]
[333946605,1722646237177,-151.080308,0.00016428,3]
[333946606,1722646237187,-151.080308,0.00016428,4]
[333946607,1722646237195,-151.080308,0.00016428,4]
[333946608,1722646237205,-151.080308,0.00016428,4]
[333946609,1722646237214,-151.080308,0.00016428,2]
[333946610,1722646237224,-150.0,0.00016437,2]
[333946611,1722646237234,-500.0,0.00016437,2]
[333946612,1722646237245,-500.0,0.00016437,2]
[333946613,1722646237255,-200.0,0.00016437,2]
[333946614,1722646237264,-345555.73774282,0.00016438,7]
[333946690,1722646238855,-333603.36096439,0.00016438,7]
[333946875,1722646240875,-5000.0,0.0001254,2]
[333946877,1722646240885,-1049.57124552,0.0001331,2]
[333946879,1722646240896,-155.0,0.00013559,2]
[333946881,1722646240906,-247.40050019,0.00013561,2]
[333946883,1722646240916,-207.00263792,0.00013579,2]
[333946885,1722646240926,-2751.0,0.00013699,2]
[333946887,1722646240935,-103632.263707,0.00016438,7]
[333946889,1722646240945,-153.846154,0.00016438,2]
[333946891,1722646240955,-171.17247953,0.00016438,2]
[333946893,1722646240965,-1000.0,0.00016438,2]
[333946895,1722646240974,-4268.70526342,0.00016438,15]
[333946897,1722646240984,-155.0,0.00016438,2]
[333946899,1722646240994,-22078.99409457,0.00016438,2]
[333946901,1722646241003,-500.0,0.00016438,2]
[333946903,1722646241013,-500.0,0.00016438,2]
[333946904,1722646241022,-151.21824416,0.00016438,2]
[333946906,1722646241032,-1367.89,0.00016438,2]
[333946908,1722646241041,-500.0,0.00016438,2]
[333946910,1722646241052,-500.0,0.00016438,2]
[333946912,1722646241062,-361.87382286,0.00016438,2]
[333946914,1722646241071,-759.77,0.00016438,2]
[333946916,1722646241080,-500.0,0.00016438,2]
[333946918,1722646241090,-500.0,0.00016438,2]
[333946920,1722646241101,-614.83675138,0.00016438,2]
[333946922,1722646241111,-500.0,0.00016438,2]
[333946924,1722646241120,-500.0,0.00016438,2]
[333946926,1722646241130,-1673.49,0.00016438,2]
[333946927,1722646241139,-500.0,0.00016438,2]
[333946929,1722646241148,-500.0,0.00016438,2]
[333946931,1722646241157,-672.39,0.00016438,2]
[333946933,1722646241166,-500.0,0.00016438,2]
[333946935,1722646241175,-722.9,0.00016438,2]
[333946936,1722646241184,-502.35,0.00016438,2]
[333946938,1722646241194,-500.0,0.00016438,2]
[333946940,1722646241204,-500.0,0.00016438,2]
[333946942,1722646241214,-541.39,0.00016438,2]
[333946944,1722646241223,-685.07,0.00016438,2]
[333946946,1722646241232,-1012.82,0.00016438,2]
[333946948,1722646241246,-500.0,0.00016438,2]
[333946950,1722646241259,-1462.39,0.00016438,2]
[333946952,1722646241268,-500.0,0.00016438,2]
[333946954,1722646241279,-500.0,0.00016438,2]
[333946956,1722646241288,-500.0,0.00016438,2]
[333946958,1722646241300,-706.21,0.00016438,2]
[333946960,1722646241310,-500.0,0.00016438,2]
[333946962,1722646241320,-993.79,0.00016438,2]
[333946963,1722646241330,-500.0,0.00016438,2]
[333946965,1722646241339,-500.0,0.00016438,2]
[333946967,1722646241348,-500.0,0.00016438,2]
[333946969,1722646241358,-501.24,0.00016438,2]
[333946971,1722646241368,-551.69,0.00016438,2]
[333946973,1722646241377,-596.87,0.00016438,2]
[333946975,1722646241387,-715.4,0.00016438,2]
[333946977,1722646241396,-673.09,0.00016438,2]
[333946979,1722646241406,-694.37,0.00016438,2]
[333946981,1722646241416,-500.0,0.00016438,2]
[333946983,1722646241425,-1068.56,0.00016438,2]
[333946985,1722646241435,-500.0,0.00016438,2]
[333946987,1722646241445,-553.14,0.00016438,2]
[333946989,1722646241454,-500.0,0.00016438,2]
[333946991,1722646241464,-759.4,0.00016438,2]
[333946993,1722646241474,-1063.73,0.00016438,2]
[333946995,1722646241484,-500.0,0.00016438,2]
[333946997,1722646241493,-500.0,0.00016438,2]
[333946999,1722646241503,-920.72,0.00016438,2]
[333947001,1722646241513,-500.0,0.00016438,2]
[333947003,1722646241523,-500.0,0.00016438,2]
[333947005,1722646241533,-609.64,0.00016438,2]
[333947007,1722646241543,-500.0,0.00016438,2]
[333947009,1722646241556,-500.0,0.00016438,2]
[333947011,1722646241566,-500.0,0.00016438,2]
[333947013,1722646241575,-1263.0,0.00016438,2]
[333947015,1722646241584,-500.0,0.00016438,2]
[333947017,1722646241593,-500.0,0.00016438,2]
[333947019,1722646241603,-500.0,0.00016438,2]
[333947021,1722646241612,-631.86,0.00016438,2]
[333947023,1722646241622,-200.0,0.00016438,2]
[333947025,1722646241632,-500.0,0.00016438,2]
[333947027,1722646241642,-500.0,0.00016438,2]
[333947029,1722646241652,-500.0,0.00016438,2]
[333947031,1722646241662,-500.0,0.00016438,2]
[333947033,1722646241672,-967.69,0.00016438,2]
[333947035,1722646241682,-2089.31,0.00016438,2]
[333947037,1722646241692,-985.32,0.00016438,2]
[333947039,1722646241703,-165.11847939,0.00016438,2]
[333947041,1722646241713,-988.79,0.00016438,2]
[333947043,1722646241723,-661.7,0.00016438,2]
[333947045,1722646241732,-666.42,0.00016438,2]
[333947047,1722646241742,-500.0,0.00016438,2]
[333947049,1722646241753,-842.96,0.00016438,2]
[333947051,1722646241764,-500.0,0.00016438,2]
[333947053,1722646241774,-500.0,0.00016438,2]
[333947055,1722646241783,-500.0,0.00016438,2]
[333947057,1722646241793,-500.0,0.00016438,2]
[333947058,1722646241813,-532.3,0.00016438,2]
[333947061,1722646241823,-500.0,0.00016438,2]
[333947063,1722646241833,-500.0,0.00016438,2]
[333947065,1722646241842,-151.0,0.00016438,2]
[333947067,1722646241852,-249.832894,0.00016438,2]
[333947069,1722646241862,-500.0,0.00016438,2]
[333947071,1722646241872,-1262.18,0.00016438,2]
[333947073,1722646241882,-500.0,0.00016438,2]
[333947075,1722646241891,-500.0,0.00016438,2]
[333947077,1722646241901,-500.0,0.00016438,2]
[333947079,1722646241912,-500.0,0.00016438,2]
[333947081,1722646241922,-500.0,0.00016438,2]
[333947083,1722646241931,-564.11,0.00016438,2]
[333947085,1722646241941,-500.0,0.00016438,2]
[333947087,1722646241950,-500.0,0.00016438,2]
[333947089,1722646241960,-500.0,0.00016438,2]
[333947091,1722646241970,-500.0,0.00016438,2]
[333947093,1722646241979,-500.0,0.00016438,2]
[333947095,1722646241989,-1548.02,0.00016438,2]
[333947097,1722646241998,-500.0,0.00016438,2]
[333947098,1722646242007,-775.05,0.00016438,2]
[333947101,1722646242017,-500.0,0.00016438,2]
[333947103,1722646242026,-500.0,0.00016438,2]
[333947105,1722646242035,-500.0,0.00016438,2]
[333947107,1722646242045,-500.0,0.00016438,2]
[333947108,1722646242055,-500.0,0.00016438,2]
[333947111,1722646242065,-668.0,0.00016438,2]
[333947113,1722646242074,-794.23,0.00016438,2]
[333947115,1722646242084,-500.0,0.00016438,2]
[333947116,1722646242093,-500.0,0.00016438,2]
[333947118,1722646242102,-500.0,0.00016438,2]
[333947120,1722646242111,-500.0,0.00016438,2]
[333947122,1722646242122,-500.0,0.00016438,2]
[333947124,1722646242131,-500.0,0.00016438,2]
[333947126,1722646242140,-617.43,0.00016438,2]
[333947128,1722646242150,-500.0,0.00016438,2]
[333947130,1722646242159,-535.35,0.00016438,2]
[333947132,1722646242169,-500.0,0.00016438,2]
[333947134,1722646242178,-784.94,0.00016438,2]
[333947136,1722646242188,-931.88,0.00016438,2]
[333947138,1722646242197,-802.11,0.00016438,2]
[333947140,1722646242207,-1180.93,0.00016438,2]
[333947142,1722646242217,-500.0,0.00016438,2]
[333947144,1722646242227,-500.0,0.00016438,2]
[333947146,1722646242236,-500.0,0.00016438,2]
[333947148,1722646242249,-685.17,0.00016438,2]
[333947150,1722646242258,-500.0,0.00016438,2]
[333947151,1722646242267,-500.0,0.00016438,2]
[333947153,1722646242277,-500.0,0.00016438,2]
[333947155,1722646242288,-1078.67,0.00016438,2]
[333947157,1722646242300,-500.0,0.00016438,2]
[333947159,1722646242310,-500.0,0.00016438,2]
[333947161,1722646242322,-858.42,0.00016438,2]
[333947162,1722646242332,-500.0,0.00016438,2]
[333947164,1722646242341,-500.0,0.00016438,2]
[333947166,1722646242351,-500.0,0.00016438,2]
[333947168,1722646242360,-500.0,0.00016438,2]
[333947170,1722646242370,-301.7727546,0.00016438,2]
[333947172,1722646242380,-500.0,0.00016438,2]
[333947174,1722646242389,-967.97,0.00016438,2]
[333947176,1722646242398,-525.22353922,0.00016438,2]
[333947179,1722646242422,-14.69646078,0.00016438,2]
[333947181,1722646242432,-486.86038051,0.00016438,2]
[333947183,1722646242441,-500.0,0.00016438,2]
[333947185,1722646242451,-500.0,0.00016438,2]
[333947187,1722646242464,-266.66738129,0.00016438,2]
[333947189,1722646242473,-500.0,0.00016438,2]
[333947191,1722646242482,-242.49577742,0.00016438,2]
[333947193,1722646242495,-257.50422258,0.00016438,2]
[333947195,1722646242505,-500.0,0.00016438,2]
[333947197,1722646242514,-676.15,0.00016438,2]
[333947199,1722646242523,-1866.07,0.00016438,2]
[333947201,1722646242533,-500.0,0.00016438,2]
[333947203,1722646242543,-728.16,0.00016438,2]
[333947205,1722646242555,-33.34474246,0.00016438,2]
[333947207,1722646242567,-537.51525754,0.00016438,2]
[333947209,1722646242576,-125.68474246,0.00016438,2]
[333947211,1722646242587,-442.65525754,0.00016438,2]
[333947212,1722646242597,-500.0,0.00016438,2]
[333947214,1722646242607,-500.0,0.00016438,2]
[333947216,1722646242616,-500.0,0.00016438,2]
[333947218,1722646242626,-1313.82,0.00016438,2]
[333947220,1722646242636,-187.921304,0.00016438,2]
[333947222,1722646242646,-500.0,0.00016438,2]
[333947224,1722646242656,-500.0,0.00016438,2]
[333947226,1722646242665,-500.0,0.00016438,2]
[333947228,1722646242675,-500.0,0.00016438,2]
[333947230,1722646242684,-500.0,0.00016438,2]
[333947232,1722646242694,-16.80696669,0.00016438,2]
[333947234,1722646242706,-483.19303331,0.00016438,2]
[333947236,1722646242716,-1081.6,0.00016438,2]
[333947238,1722646242726,-511.92,0.00016438,2]
[333947240,1722646242735,-1094.43,0.00016438,2]
[333947242,1722646242745,-500.0,0.00016438,2]
[333947244,1722646242755,-655.14,0.00016438,2]
[333947246,1722646242764,-618.00642928,0.00016438,2]
[333947247,1722646242773,-595.07,0.00016438,2]
[333947249,1722646242784,-500.0,0.00016438,2]
[333947251,1722646242793,-500.0,0.00016438,2]
[333947253,1722646242804,-921.27902498,0.00016438,2]
[333947258,1722646242817,-20.17097502,0.00016438,2]
[333947261,1722646242826,-500.0,0.00016438,2]
[333947264,1722646242836,-500.0,0.00016438,2]
[333947266,1722646242845,-500.0,0.00016438,2]
[333947268,1722646242855,-500.0,0.00016438,2]
[333947270,1722646242866,-500.0,0.00016438,2]
[333947272,1722646242875,-500.0,0.00016438,2]
[333947274,1722646242886,-500.0,0.00016438,2]
[333947276,1722646242896,-500.0,0.00016438,2]
[333947278,1722646242905,-500.0,0.00016438,2]
[333947280,1722646242916,-500.0,0.00016438,2]
[333947282,1722646242926,-1464.3,0.00016438,2]
[333947283,1722646242935,-554.46,0.00016438,2]
[333947284,1722646242945,-1154.33,0.00016438,2]
[333947285,1722646242955,-500.0,0.00016438,2]
[333947286,1722646242964,-679.16,0.00016438,2]
[333947287,1722646242978,-961.79,0.00016438,2]
[333947288,1722646242988,-500.0,0.00016438,2]
[333947289,1722646242997,-190.58629449,0.00016438,2]
[333947448,1722646244659,-200.0,0.00013648,2]
[333947449,1722646244669,-158.84772296,0.0001372,2]
[333947451,1722646244679,-1224.08439632,0.00016271,2]
[333947453,1722646244688,-1224.08439632,0.00016435,2]
[333947455,1722646244698,-309.41370551,0.00016438,2]
[333947456,1722646244707,-500.0,0.00016438,2]
[333947458,1722646244717,-500.0,0.00016438,2]
[333947460,1722646244726,-500.0,0.00016438,2]
[333947462,1722646244736,-500.0,0.00016438,2]
[333947464,1722646244746,-500.0,0.00016438,2]
[333947465,1722646244756,-1475.96,0.00016438,2]
[333947467,1722646244765,-500.0,0.00016438,2]
[333947469,1722646244775,-500.0,0.00016438,2]
[333947471,1722646244784,-693.9,0.00016438,2]
[333947473,1722646244793,-500.0,0.00016438,2]
[333947474,1722646244806,-1760.87,0.00016438,2]
[333947476,1722646244816,-586.45,0.00016438,2]
[333947478,1722646244825,-561.26,0.00016438,2]
[333947480,1722646244835,-500.0,0.00016438,2]
[333947482,1722646244845,-569.48,0.00016438,2]
[333947483,1722646244855,-574.84,0.00016438,2]
[333947484,1722646244864,-548.36,0.00016438,2]
[333947485,1722646244874,-500.0,0.00016438,2]
[333947486,1722646244883,-500.0,0.00016438,2]
[333947487,1722646244893,-2358.9,0.00016438,2]
[333947488,1722646244903,-660.24,0.00016438,2]
[333947489,1722646244912,-500.0,0.00016438,2]
[333947490,1722646244922,-514.98862062,0.00016438,2]
[333947491,1722646244932,-500.0,0.00016438,2]
[333947492,1722646244942,-500.0,0.00016438,2]
[333947493,1722646244952,-1357.05,0.00016438,2]
[333947494,1722646244962,-978.86,0.00016438,2]
[333947495,1722646244971,-500.0,0.00016438,2]
[333947497,1722646244981,-1065.19,0.00016438,2]
[333947499,1722646244991,-500.0,0.00016438,2]
[333947501,1722646245001,-721.49,0.00016438,2]
[333947503,1722646245011,-500.0,0.00016438,2]
[333947505,1722646245021,-1557.39,0.00016438,2]
[333947507,1722646245030,-500.0,0.00016438,2]
[333947509,1722646245040,-763.88,0.00016438,2]
[333947511,1722646245052,-500.0,0.00016438,2]
[333947513,1722646245062,-500.0,0.00016438,2]
[333947515,1722646245071,-500.0,0.00016438,2]
[333947516,1722646245081,-500.0,0.00016438,2]
[333947517,1722646245090,-500.0,0.00016438,2]
[333947518,1722646245099,-500.0,0.00016438,2]
[333947519,1722646245109,-500.0,0.00016438,2]
[333947520,1722646245119,-2478.95,0.00016438,2]
[333947521,1722646245128,-500.0,0.00016438,2]
[333947522,1722646245138,-151.0,0.00016438,2]
[333947523,1722646245148,-151.0,0.00016438,2]
[333947524,1722646245158,-500.0,0.00016438,2]
[333947525,1722646245167,-1118.83,0.00016438,2]
[333947526,1722646245177,-500.0,0.00016438,2]
[333947527,1722646245186,-286.67005762,0.00016438,2]
[333947528,1722646245196,-746.32,0.00016438,2]
[333947530,1722646245206,-1056.33,0.00016438,2]
[333947532,1722646245216,-500.0,0.00016438,2]
[333947534,1722646245226,-525.08,0.00016438,2]
[333947536,1722646245237,-1110.42,0.00016438,2]
[333947538,1722646245251,-889.44,0.00016438,2]
[333947540,1722646245261,-500.0,0.00016438,2]
[333947542,1722646245272,-500.0,0.00016438,2]
[333947544,1722646245282,-651.59,0.00016438,2]
[333947546,1722646245294,-500.0,0.00016438,2]
[333947549,1722646245306,-927.65,0.00016438,2]
[333947551,1722646245315,-500.0,0.00016438,2]
[333947553,1722646245330,-1148.69,0.00016438,2]
[333947555,1722646245340,-2421.4,0.00016438,2]
[333947557,1722646245350,-500.0,0.00016438,2]
[333947558,1722646245360,-500.0,0.00016438,2]
[333947560,1722646245370,-500.0,0.00016438,2]
[333947561,1722646245379,-1344.05,0.00016438,2]
[333947562,1722646245389,-1357.59,0.00016438,2]
[333947563,1722646245398,-1257.9,0.00016438,2]
[333947564,1722646245407,-500.0,0.00016438,2]
[333947565,1722646245417,-928.29,0.00016438,2]
[333947566,1722646245429,-1278.64,0.00016438,2]
[333947567,1722646245439,-500.0,0.00016438,2]
[333947568,1722646245449,-1120.97,0.00016438,2]
[333947569,1722646245459,-1524.8,0.00016438,2]
[333947570,1722646245468,-500.0,0.00016438,2]
[333947571,1722646245478,-500.0,0.00016438,2]
[333947572,1722646245487,-762.68817103,0.00016438,2]
[333947573,1722646245508,-336.90182897,0.00016438,2]
[333947575,1722646245518,-500.0,0.00016438,2]
[333947577,1722646245527,-129.85647034,0.00016438,2]
[333947579,1722646245539,-522.17352966,0.00016438,2]
[333947581,1722646245551,-264.41778073,0.00016438,2]
[333947678,1722646246904,-218.70120193,0.0001367,2]
[333947679,1722646246914,-155.0,0.00013698,2]
[333947680,1722646246923,-572.29221927,0.00016438,2]
[333947681,1722646246932,-500.0,0.00016438,2]
[333947682,1722646246941,-679.78,0.00016438,2]
[333947683,1722646246951,-295.8265788,0.00016438,2]
[333947684,1722646246962,-1112.2634212,0.00016438,2]
[333947685,1722646246971,-1134.78,0.00016438,2]
[333947686,1722646246982,-500.0,0.00016438,2]
[333947687,1722646246991,-500.0,0.00016438,2]
[333947688,1722646247002,-500.0,0.00016438,2]
[333947689,1722646247011,-500.0,0.00016438,2]
[333947690,1722646247021,-505.26,0.00016438,2]
[333947691,1722646247030,-705.4,0.00016438,2]
[333947692,1722646247040,-545.85,0.00016438,2]
[333947693,1722646247050,-1051.29,0.00016438,2]
[333947694,1722646247059,-500.0,0.00016438,2]
[333947695,1722646247068,-506.76,0.00016438,2]
[333947696,1722646247077,-500.0,0.00016438,2]
[333947697,1722646247087,-2212.86,0.00016438,2]
[333947698,1722646247096,-1428.0,0.00016438,2]
[333947699,1722646247105,-1646.74,0.00016438,2]
[333947700,1722646247114,-1016.19,0.00016438,2]
[333947701,1722646247123,-500.0,0.00016438,2]
[333947702,1722646247132,-693.69,0.00016438,2]
[333947703,1722646247141,-1486.95,0.00016438,2]
[333947704,1722646247150,-1999.85,0.00016438,2]
[333947705,1722646247159,-500.0,0.00016438,2]
[333947706,1722646247168,-760.54,0.00016438,2]
[333947707,1722646247177,-500.0,0.00016438,2]
[333947708,1722646247186,-500.0,0.00016438,2]
[333947709,1722646247195,-500.0,0.00016438,2]
[333947710,1722646247204,-689.55,0.00016438,2]
[333947711,1722646247213,-893.72,0.00016438,2]
[333947712,1722646247222,-673.81,0.00016438,2]
[333947713,1722646247232,-2602.55,0.00016438,2]
[333947714,1722646247240,-500.0,0.00016438,2]
[333947715,1722646247255,-1103.06,0.00016438,2]
[333947716,1722646247264,-500.0,0.00016438,2]
[333947717,1722646247273,-500.0,0.00016438,2]
[333947718,1722646247282,-500.0,0.00016438,2]
[333947719,1722646247294,-500.0,0.00016438,2]
[333947720,1722646247306,-3337.63,0.00016438,2]
[333947721,1722646247317,-1035.01,0.00016438,2]
[333947722,1722646247326,-868.0,0.00016438,2]
[333947723,1722646247336,-500.0,0.00016438,2]
[333947724,1722646247345,-731.06,0.00016438,2]
[333947725,1722646247354,-1579.27,0.00016438,2]
[333947726,1722646247362,-500.0,0.00016438,2]
[333947727,1722646247371,-723.57,0.00016438,2]
[333947728,1722646247380,-500.0,0.00016438,2]
[333947729,1722646247389,-500.0,0.00016438,2]
[333947730,1722646247398,-593.98,0.00016438,2]
[333947731,1722646247407,-500.0,0.00016438,2]
[333947732,1722646247417,-2218.57,0.00016438,2]
[333947733,1722646247425,-500.0,0.00016438,2]
[333947734,1722646247435,-500.0,0.00016438,2]
[333947735,1722646247446,-2649.09,0.00016438,2]
[333947736,1722646247454,-995.81,0.00016438,2]
[333947737,1722646247463,-557.45669364,0.00016438,2]
[333947738,1722646247472,-500.0,0.00016438,2]
[333947739,1722646247481,-895.44,0.00016438,2]
[333947740,1722646247491,-500.0,0.00016438,2]
[333947741,1722646247500,-1643.99,0.00016438,2]
[333947742,1722646247509,-500.0,0.00016438,2]
[333947743,1722646247518,-500.0,0.00016438,2]
[333947744,1722646247527,-600.76,0.00016438,2]
[333947745,1722646247537,-251.18943999,0.00016438,2]
[333947746,1722646247548,-1000.0,0.00016438,2]
[333947747,1722646247557,-2226.94,0.00016438,2]
[333947748,1722646247566,-500.0,0.00016438,2]
[333947749,1722646247575,-512.66844323,0.00016438,2]
[333947750,1722646247584,-500.0,0.00016438,2]
[333947751,1722646247593,-500.0,0.00016438,2]
[333947752,1722646247603,-2262.34,0.00016438,2]
[333947753,1722646247612,-569.11,0.00016438,2]
[333947754,1722646247621,-500.0,0.00016438,2]
[333947755,1722646247630,-844.97,0.00016438,2]
[333947756,1722646247639,-500.0,0.00016438,2]
[333947757,1722646247648,-1024.02,0.00016438,2]
[333947758,1722646247657,-890.88,0.00016438,2]
[333947759,1722646247667,-923.56,0.00016438,2]
[333947760,1722646247676,-500.0,0.00016438,2]
[333947761,1722646247685,-500.0,0.00016438,2]
[333947762,1722646247694,-500.0,0.00016438,2]
[333947763,1722646247703,-500.0,0.00016438,2]
[333947764,1722646247712,-934.43,0.00016438,2]